[Event "XII Paracin Festival 2019"]
[Site "Paracin"]
[Date "2019.07.11"]
[Round "8.3"]
[White "Ratkovic, Miloje"]
[Black "Lorparizangeneh, Shahin"]
[Result "1-0"]
[ECO "E10"]
[WhiteElo "2416"]
[BlackElo "2494"]
[Annotator "ChessBase"]
[PlyCount "125"]
[EventDate "2019.07.05"]
[EventType "swiss"]
[EventCountry "SRB"]
[SourceTitle "playchess.com"]
[Source "ChessBase"]
[SourceQuality "1"]
[TimeControl "5400+30"]

1. d4 {[%emt 0:00:00]} Nf6 {[%emt 0:03:16]} 2. c4 {[%emt 0:00:29]} e6 {[%emt 0:00:21]} 3. Nf3 {[%emt 0:01:45]} a6 {[%emt 0:02:02]} 4. Nc3 {[%emt 0:03:01]} d5 {[%emt 0:00:13]} 5. c5 {[%emt 0:01:23]} b6 {[%emt 0:01:26]} 6. cxb6 {[%emt 0:00:22]} cxb6 {[%emt 0:00:02]} 7. Bf4 {[%emt 0:00:57]} Bb7 {[%emt 0:03:55]} 8. e3 {[%emt 0:00:23]} Bd6 {[%emt 0:02:06]} 9. Bd3 {[%emt 0:01:49]} Nc6 {[%emt 0:11:44]} 10. O-O {[%emt 0:02:55]} O-O {[%emt 0:00:18]} 11. Rc1 {[%emt 0:02:24]} Qb8 {[%emt 0:03:21]} 12. Bg5 {[%emt 0:04:26]} Nd7 {[%emt 0:03:33]} 13. e4 {[%emt 0:11:27]} dxe4 {[%emt 0:03:52]} 14. Bxe4 {[%emt 0:06:47]} Nb4 {[%emt 0:08:20]} 15. Qe2 {[%emt 0:15:44]} Re8 {[%emt 0:03:54]} 16. Rfe1 {[%emt 0:02:17]} b5 {[%emt 0:10:54]} 17. Ne5 {[%emt 0:08:06]} Bxe5 {[%emt 0:05:02]} 18. dxe5 {[%emt 0:00:13]} Bxe4 {[%emt 0:00:30]} 19. Qxe4 {[%emt 0:01:18]} Qxe5 {[%emt 0:01:17]} 20. Qxe5 {[%emt 0:06:36]} Nxe5 {[%emt 0:00:13]} 21. Rxe5 {[%emt 0:00:08]} Nd3 {[%emt 0:00:17]} 22. Re2 {[%emt 0:00:18]} Nxc1 {[%emt 0:00:08]} 23. Bxc1 {[%emt 0:00:03]} Rac8 {[%emt 0:06:14]} 24. Be3 {[%emt 0:01:26]} Red8 {[%emt 0:03:48]} 25. f3 {[%emt 0:00:26]} f6 {[%emt 0:05:56]} 26. Kf2 {[%emt 0:01:54]} Kf7 {[%emt 0:00:08]} 27. a4 {[%emt 0:03:52]} b4 {[%emt 0:03:01]} 28. Na2 {[%emt 0:02:38]} a5 {[%emt 0:04:15]} 29. Nc1 {[%emt 0:01:23]} Rd5 {[%emt 0:02:28]} 30. Nb3 {[%emt 0:00:22]} e5 {[%emt 0:01:27]} 31. Ke1 {[%emt 0:05:04]} Rc6 {[%emt 0:01:38]} 32. Rd2 {[%emt 0:02:07]} Ke6 {[%emt 0:00:23]} 33. Ke2 {[%emt 0:01:19]} Rxd2+ {[%emt 0:01:14]} 34. Kxd2 {[%emt 0:06:37]} Kd5 {[%emt 0:01:04]} 35. Kd3 {[%emt 0:01:55]} f5 {[%emt 0:00:02]} 36. Nd2 {[%emt 0:00:28]} Rc1 {[%emt 0:02:59]} 37. Bb6 {[%emt 0:02:10]} Rh1 {[%emt 0:01:36]} 38. h3 {[%emt 0:01:24]} Rh2 {[%emt 0:00:19]} 39. Bxa5 {[%emt 0:00:18]} Rxg2 {[%emt 0:02:23]} 40. Bxb4 {[%emt 0:00:18]} Rh2 {[%emt 0:00:15]} 41. Bf8 {[%emt 0:00:54]} e4+ {[%emt 0:00:36]} 42. Ke3 {[%emt 0:00:51]} g5 {[%emt 0:01:46]} 43. fxe4+ {[%emt 0:00:20]} fxe4 {[%emt 0:00:01]} 44. a5 {[%emt 0:00:00]} Rxh3+ {[%emt 0:00:13]} 45. Ke2 {[%emt 0:00:05]} Rh2+ {[%emt 0:00:48]} 46. Ke3 {[%emt 0:00:14]} Rh1 {[%emt 0:01:03]} 47. a6 {[%emt 0:00:37]} Rh3+ {[%emt 0:01:09]} 48. Ke2 {[%emt 0:00:05]} Rh2+ {[%emt 0:00:07]} 49. Ke3 {[%emt 0:00:56]} Rh3+ {[%emt 0:00:07]} 50. Ke2 {[%emt 0:00:03]} Rh2+ {[%emt 0:00:04]} 51. Ke1 {[%emt 0:00:03]} Rh1+ {[%emt 0:00:53]} 52. Nf1 {[%emt 0:01:10]} Kc6 {[%emt 0:00:26]} 53. Bc5 {[%emt 0:00:18]} g4 {[%emt 0:01:02]} 54. Kf2 {[%emt 0:02:00]} Rh6 {[%emt 0:02:11]} 55. b4 {[%emt 0:00:27]} Rf6+ {[%emt 0:00:27]} 56. Kg2 {[%emt 0:00:06]} h5 {[%emt 0:00:37]} 57. Ne3 {[%emt 0:00:02]} Kb5 {[%emt 0:00:27]} 58. Nd5 {[%emt 0:00:53]} Rf3 {[%emt 0:00:34]} 59. a7 {[%emt 0:00:16]} Ra3 {[%emt 0:00:03]} 60. a8=Q {[%emt 0:00:13]} Rxa8 {[%emt 0:00:04]} 61. Nc7+ {[%emt 0:00:15]} Kc4 {[%emt 0:00:44]} 62. Nxa8 {[%emt 0:00:07]} h4 {[%emt 0:01:09]} 63. Nb6+ {[%emt 0:00:14]} 1-0

[Event "XII Paracin Festival 2019"]
[Site "Paracin"]
[Date "2019.07.11"]
[Round "8.4"]
[White "Gadimbayli, Abdulla"]
[Black "Bashirli, Nail"]
[Result "1/2-1/2"]
[ECO "D37"]
[WhiteElo "2414"]
[BlackElo "2367"]
[Annotator "ChessBase"]
[PlyCount "48"]
[EventDate "2019.07.05"]
[EventType "swiss"]
[EventCountry "SRB"]
[SourceTitle "playchess.com"]
[Source "ChessBase"]
[SourceQuality "1"]
[TimeControl "5400+30"]

1. d4 {[%emt 0:10:40]} d5 {[%emt 0:00:00]} 2. Nf3 {[%emt 0:00:10]} Nf6 {[%emt 0:00:00]} 3. c4 {[%emt 0:00:04]} e6 {[%emt 0:00:00]} 4. Nc3 {[%emt 0:00:08]} Be7 {[%emt 0:00:00]} 5. e3 {[%emt 0:00:06]} O-O {[%emt 0:00:03]} 6. Bd3 {[%emt 0:00:06]} b6 {[%emt 0:00:07]} 7. O-O {[%emt 0:00:12]} Bb7 {[%emt 0:00:04]} 8. b3 {[%emt 0:00:04]} Nbd7 {[%emt 0:00:09]} 9. Bb2 {[%emt 0:00:26]} c5 {[%emt 0:00:05]} 10. Qe2 {[%emt 0:00:08]} cxd4 {[%emt 0:00:48]} 11. exd4 {[%emt 0:00:05]} Rc8 {[%emt 0:00:12]} 12. Rac1 {[%emt 0:00:06]} Bb4 {[%emt 0:01:13]} 13. a3 {[%emt 0:01:31]} Bxc3 {[%emt 0:00:04]} 14. Bxc3 {[%emt 0:00:05]} Ne4 {[%emt 0:00:04]} 15. Bxe4 {[%emt 0:00:21]} dxe4 {[%emt 0:00:05]} 16. Ne5 {[%emt 0:00:06]} Nxe5 {[%emt 0:00:25]} 17. dxe5 {[%emt 0:00:07]} Qg5 {[%emt 0:00:35]} 18. Qe3 {[%emt 0:00:04]} Qxe3 {[%emt 0:00:14]} 19. fxe3 {[%emt 0:00:05]} Rfd8 {[%emt 0:00:15]} 20. Bd4 {[%emt 0:00:15]} Rd7 {[%emt 0:00:12]} 21. Rf2 {[%emt 0:00:08]} h6 {[%emt 0:01:07]} 22. a4 {[%emt 0:00:12]} Bc6 {[%emt 0:00:14]} 23. Rd2 {[%emt 0:00:13]} Bb7 {[%emt 0:00:18]} 24. Rf2 {[%emt 0:00:11]} Bc6 {[%emt 0:00:28]} 1/2-1/2

[Event "XII Paracin Festival 2019"]
[Site "Paracin"]
[Date "2019.07.11"]
[Round "8.5"]
[White "Peng, Xiongjian"]
[Black "Perunovic, Milos"]
[Result "1/2-1/2"]
[ECO "A63"]
[WhiteElo "2467"]
[BlackElo "2597"]
[Annotator "ChessBase"]
[PlyCount "57"]
[EventDate "2019.07.05"]
[EventType "swiss"]
[EventCountry "SRB"]
[SourceTitle "playchess.com"]
[Source "ChessBase"]
[SourceQuality "1"]
[TimeControl "5400+30"]

1. d4 {[%emt 0:00:00]} Nf6 2. Nf3 {[%emt 0:00:00]} e6 {[%emt 0:03:16]} 3. c4 {[%emt 0:00:00]} c5 {[%emt 0:00:57]} 4. d5 {[%emt 0:00:06]} d6 {[%emt 0:00:08]} 5. Nc3 {[%emt 0:00:05]} exd5 {[%emt 0:00:06]} 6. cxd5 {[%emt 0:00:05]} g6 {[%emt 0:00:11]} 7. g3 {[%emt 0:00:06]} Bg7 {[%emt 0:00:05]} 8. Bg2 {[%emt 0:00:05]} O-O {[%emt 0:00:08]} 9. O-O {[%emt 0:00:04]} Nbd7 {[%emt 0:08:22]} 10. Nd2 {[%emt 0:02:54]} Nh5 {[%emt 0:11:47]} 11. Nb5 {[%emt 0:08:39]} Ndf6 {[%emt 0:23:39]} 12. a4 {[%emt 0:00:24]} a6 {[%emt 0:03:58]} 13. Nc3 {[%emt 0:00:05]} Ng4 {[%emt 0:04:19]} 14. h3 {[%emt 0:03:19]} Ne5 {[%emt 0:04:57]} 15. Nf3 {[%emt 0:22:39]} Nxf3+ {[%emt 0:01:33]} 16. exf3 {[%emt 0:00:04]} f5 {[%emt 0:04:11]} 17. f4 {[%emt 0:00:08]} Bd7 {[%emt 0:02:48]} 18. a5 {[%emt 0:00:36]} b5 {[%emt 0:01:48]} 19. axb6 {[%emt 0:00:11]} Qxb6 {[%emt 0:00:01]} 20. Qc2 {[%emt 0:08:12]} Rfe8 {[%emt 0:01:40]} 21. Bf3 {[%emt 0:03:26]} Rab8 {[%emt 0:04:30]} 22. Ra3 {[%emt 0:02:07]} a5 {[%emt 0:02:16]} 23. Kg2 {[%emt 0:01:24]} Nf6 {[%emt 0:06:14]} 24. Rd1 {[%emt 0:03:50]} Qb4 {[%emt 0:01:40]} 25. Na2 {[%emt 0:01:16]} Qb6 {[%emt 0:00:40]} 26. Nc3 {[%emt 0:00:31]} Qb4 {[%emt 0:01:50]} 27. Na2 {[%emt 0:01:21]} Qb6 {[%emt 0:00:06]} 28. Nc3 {[%emt 0:00:11]} Qb4 {[%emt 0:00:24]} 29. Na2 {[%emt 0:02:12]} 1/2-1/2

[Event "XII Paracin Festival 2019"]
[Site "Paracin"]
[Date "2019.07.11"]
[Round "8.6"]
[White "Sanal, Vahap"]
[Black "Janzelj, Tim"]
[Result "1/2-1/2"]
[ECO "B13"]
[WhiteElo "2520"]
[BlackElo "2416"]
[Annotator "ChessBase"]
[PlyCount "172"]
[EventDate "2019.07.05"]
[EventType "swiss"]
[EventCountry "SRB"]
[SourceTitle "playchess.com"]
[Source "ChessBase"]
[SourceQuality "1"]
[TimeControl "5400+30"]

1. e4 {[%emt 0:02:26]} c6 {[%emt 0:00:00]} 2. d4 {[%emt 0:00:12]} d5 {[%emt 0:00:00]} 3. exd5 {[%emt 0:00:43]} cxd5 {[%emt 0:00:01]} 4. c4 {[%emt 0:00:05]} Nf6 {[%emt 0:00:46]} 5. Nc3 {[%emt 0:00:06]} Nc6 {[%emt 0:00:54]} 6. Bg5 {[%emt 0:00:11]} e6 {[%emt 0:01:29]} 7. Nf3 {[%emt 0:01:18]} Be7 {[%emt 0:00:50]} 8. c5 {[%emt 0:00:53]} Ne4 {[%emt 0:06:59]} 9. Be3 {[%emt 0:02:56]} O-O {[%emt 0:03:47]} 10. Rc1 {[%emt 0:12:18]} Bf6 {[%emt 0:11:38]} 11. Bb5 {[%emt 0:11:29]} Bd7 {[%emt 0:10:28]} 12. O-O {[%emt 0:10:19]} Nxc3 {[%emt 0:07:49]} 13. Rxc3 {[%emt 0:00:44]} Nxd4 {[%emt 0:16:13]} 14. Nxd4 {[%emt 0:01:33]} Bxd4 {[%emt 0:00:06]} 15. Bxd4 {[%emt 0:00:45]} Bxb5 {[%emt 0:00:07]} 16. Qg4 {[%emt 0:02:00]} e5 {[%emt 0:05:59]} 17. Bxe5 {[%emt 0:01:35]} f6 {[%emt 0:00:02]} 18. Bd6 {[%emt 0:00:27]} Re8 {[%emt 0:00:52]} 19. Rfc1 {[%emt 0:01:58]} Qd7 {[%emt 0:01:12]} 20. Qd1 {[%emt 0:18:33]} Qf5 {[%emt 0:01:44]} 21. a4 {[%emt 0:01:16]} Bc4 {[%emt 0:03:56]} 22. b3 {[%emt 0:02:11]} Be2 {[%emt 0:00:06]} 23. Qd2 {[%emt 0:00:32]} Re6 {[%emt 0:01:52]} 24. Re3 {[%emt 0:00:55]} Rxe3 {[%emt 0:02:27]} 25. Qxe3 {[%emt 0:00:06]} Bh5 {[%emt 0:07:13]} 26. f3 {[%emt 0:01:24]} Re8 {[%emt 0:00:14]} 27. Qd2 {[%emt 0:00:43]} Qe6 {[%emt 0:03:17]} 28. b4 {[%emt 0:01:11]} a6 {[%emt 0:00:23]} 29. b5 {[%emt 0:00:47]} axb5 {[%emt 0:00:05]} 30. axb5 {[%emt 0:00:10]} Bf7 {[%emt 0:01:22]} 31. Bg3 {[%emt 0:07:38]} Rc8 {[%emt 0:02:43]} 32. Bf2 {[%emt 0:04:19]} Qd7 {[%emt 0:02:50]} 33. Rb1 {[%emt 0:01:44]} Bg6 {[%emt 0:01:16]} 34. Rb2 {[%emt 0:01:19]} Ra8 {[%emt 0:01:42]} 35. Qc1 {[%emt 0:01:12]} d4 {[%emt 0:05:24]} 36. c6 {[%emt 0:01:36]} bxc6 {[%emt 0:00:06]} 37. bxc6 {[%emt 0:00:05]} Qd5 {[%emt 0:00:22]} 38. c7 {[%emt 0:00:37]} Rc8 {[%emt 0:00:01]} 39. Rb8 {[%emt 0:04:18]} Bf5 {[%emt 0:00:01]} 40. Qa3 {[%emt 0:01:29]} d3 {[%emt 0:02:38]} 41. Qe7 {[%emt 0:00:18]} Qd7 {[%emt 0:00:55]} 42. Rxc8+ {[%emt 0:01:25]} Qxc8 {[%emt 0:00:01]} 43. g4 {[%emt 0:00:17]} Bd7 {[%emt 0:00:47]} 44. Bg3 {[%emt 0:00:38]} h6 {[%emt 0:00:43]} 45. Qd6 {[%emt 0:00:13]} Qe8 {[%emt 0:00:35]} 46. Qxd3 {[%emt 0:00:12]} Qe6 {[%emt 0:00:16]} 47. h3 {[%emt 0:01:00]} Qb6+ {[%emt 0:00:11]} 48. Kg2 {[%emt 0:00:06]} Qe6 {[%emt 0:00:22]} 49. Qc3 {[%emt 0:01:11]} Qe2+ {[%emt 0:00:31]} 50. Bf2 {[%emt 0:00:05]} Qe6 {[%emt 0:00:02]} 51. Bd4 {[%emt 0:01:16]} h5 {[%emt 0:00:21]} 52. Kf2 {[%emt 0:00:39]} hxg4 {[%emt 0:00:43]} 53. hxg4 {[%emt 0:00:54]} Bc8 {[%emt 0:00:27]} 54. Be3 {[%emt 0:00:38]} Kf7 {[%emt 0:00:09]} 55. Qd4 {[%emt 0:01:11]} Bd7 {[%emt 0:00:25]} 56. Bf4 {[%emt 0:00:54]} Qa2+ {[%emt 0:00:14]} 57. Bd2 {[%emt 0:01:12]} Qe6 {[%emt 0:00:06]} 58. Qa7 {[%emt 0:00:52]} Bc8 {[%emt 0:00:12]} 59. Bb4 {[%emt 0:00:22]} Qe5 {[%emt 0:00:24]} 60. Bc5 {[%emt 0:01:09]} Qh2+ {[%emt 0:00:37]} 61. Kf1 {[%emt 0:00:20]} Qh1+ {[%emt 0:01:08]} 62. Ke2 {[%emt 0:00:04]} Qh2+ {[%emt 0:00:07]} 63. Bf2 {[%emt 0:00:09]} Qe5+ {[%emt 0:00:04]} 64. Kf1 {[%emt 0:00:04]} Qd5 {[%emt 0:00:47]} 65. Kg2 {[%emt 0:00:30]} Qe6 {[%emt 0:00:11]} 66. Qd4 {[%emt 0:00:10]} Bd7 {[%emt 0:00:06]} 67. Be3 {[%emt 0:02:20]} Qa2+ {[%emt 0:00:20]} 68. Kg3 {[%emt 0:00:04]} Qe6 {[%emt 0:00:04]} 69. Qc5 {[%emt 0:00:43]} Bc8 {[%emt 0:00:13]} 70. Bd2 {[%emt 0:00:07]} Qe7 {[%emt 0:01:55]} 71. Qd5+ {[%emt 0:00:12]} Qe6 {[%emt 0:00:06]} 72. Qd8 {[%emt 0:00:11]} Qe5+ {[%emt 0:00:20]} 73. f4 {[%emt 0:01:03]} Qe6 {[%emt 0:02:39]} 74. f5 {[%emt 0:00:07]} Qb3+ {[%emt 0:00:11]} 75. Kf2 {[%emt 0:00:44]} Qb6+ {[%emt 0:00:28]} 76. Be3 {[%emt 0:01:27]} Qb2+ {[%emt 0:00:03]} 77. Ke1 {[%emt 0:00:26]} Qc3+ {[%emt 0:00:32]} 78. Kf2 {[%emt 0:00:54]} Qb2+ {[%emt 0:00:01]} 79. Bd2 {[%emt 0:00:47]} Qb6+ {[%emt 0:00:15]} 80. Kg2 {[%emt 0:00:27]} Bb7+ {[%emt 0:01:11]} 81. Kh3 {[%emt 0:00:22]} Qc6 {[%emt 0:00:41]} 82. Bf4 {[%emt 0:00:40]} Qh1+ {[%emt 0:01:11]} 83. Kg3 {[%emt 0:00:04]} Qg2+ {[%emt 0:01:07]} 84. Kh4 {[%emt 0:00:02]} Qh1+ {[%emt 0:00:05]} 85. Kg3 {[%emt 0:00:02]} Qf3+ {[%emt 0:00:52]} 86. Kh4 {[%emt 0:00:02]} Qh1+ {[%emt 0:00:44]} 1/2-1/2

[Event "XII Paracin Festival 2019"]
[Site "Paracin"]
[Date "2019.07.11"]
[Round "8.7"]
[White "Avalyan, Artur"]
[Black "Tan, Justin"]
[Result "0-1"]
[ECO "E55"]
[WhiteElo "2351"]
[BlackElo "2513"]
[Annotator "ChessBase"]
[PlyCount "120"]
[EventDate "2019.07.05"]
[EventType "swiss"]
[EventCountry "SRB"]
[SourceTitle "playchess.com"]
[Source "ChessBase"]
[SourceQuality "1"]
[TimeControl "5400+30"]

1. d4 {[%emt 0:00:00]} Nf6 {[%emt 0:03:37]} 2. c4 {[%emt 0:00:00]} e6 {[%emt 0:00:05]} 3. Nc3 {[%emt 0:00:00]} Bb4 {[%emt 0:00:04]} 4. e3 {[%emt 0:00:00]} O-O {[%emt 0:00:06]} 5. Bd3 {[%emt 0:00:04]} c5 {[%emt 0:00:04]} 6. Nf3 {[%emt 0:00:10]} d5 {[%emt 0:00:06]} 7. O-O {[%emt 0:00:26]} dxc4 {[%emt 0:00:34]} 8. Bxc4 {[%emt 0:00:06]} Nbd7 {[%emt 0:01:07]} 9. Qe2 {[%emt 0:09:09]} cxd4 {[%emt 0:00:55]} 10. exd4 {[%emt 0:00:09]} Nb6 11. Bd3 {[%emt 0:01:45]} Bd7 {[%emt 0:00:40]} 12. Bg5 {[%emt 0:04:31]} Bc6 {[%emt 0:00:28]} 13. Ne5 {[%emt 0:16:40]} h6 {[%emt 0:00:59]} 14. Bxf6 {[%emt 0:07:10]} Qxf6 {[%emt 0:00:02]} 15. Ne4 {[%emt 0:12:34]} Qd8 {[%emt 0:01:00]} 16. Nxc6 {[%emt 0:00:18]} bxc6 {[%emt 0:00:02]} 17. a3 {[%emt 0:00:16]} Be7 {[%emt 0:00:27]} 18. Rac1 {[%emt 0:00:13]} Qxd4 {[%emt 0:03:26]} 19. Rxc6 {[%emt 0:05:40]} Nd5 {[%emt 0:10:02]} 20. Rc4 {[%emt 0:02:56]} Qb6 {[%emt 0:03:37]} 21. Nc3 {[%emt 0:01:42]} Nxc3 {[%emt 0:00:17]} 22. Rxc3 {[%emt 0:00:05]} Bf6 {[%emt 0:00:47]} 23. Rc2 {[%emt 0:00:06]} Rfd8 {[%emt 0:01:56]} 24. g3 {[%emt 0:04:42]} a5 {[%emt 0:05:17]} 25. Rd1 {[%emt 0:10:01]} Rd4 {[%emt 0:03:48]} 26. Rdc1 {[%emt 0:03:40]} Rad8 {[%emt 0:05:10]} 27. Bc4 {[%emt 0:02:28]} Bg5 {[%emt 0:02:27]} 28. Rf1 {[%emt 0:01:40]} Rd2 {[%emt 0:03:01]} 29. Qe4 {[%emt 0:02:23]} Rxc2 {[%emt 0:01:48]} 30. Qxc2 {[%emt 0:00:03]} Rd2 {[%emt 0:00:04]} 31. Qa4 {[%emt 0:01:34]} g6 {[%emt 0:06:01]} 32. Qb5 {[%emt 0:01:43]} Qxb5 {[%emt 0:06:22]} 33. Bxb5 {[%emt 0:00:10]} Rxb2 {[%emt 0:00:02]} 34. a4 {[%emt 0:00:10]} Bd2 {[%emt 0:00:08]} 35. Bc4 {[%emt 0:06:02]} e5 {[%emt 0:07:18]} 36. Ra1 {[%emt 0:00:24]} Bc3 {[%emt 0:00:09]} 37. Ra2 {[%emt 0:00:12]} Rb4 {[%emt 0:00:03]} 38. Bb5 {[%emt 0:00:07]} Bb2 {[%emt 0:00:04]} 39. Kf1 {[%emt 0:01:05]} f5 {[%emt 0:06:49]} 40. Ke2 {[%emt 0:00:04]} Kf7 {[%emt 0:00:48]} 41. h4 {[%emt 0:01:51]} Ke6 {[%emt 0:02:56]} 42. Kd3 {[%emt 0:00:44]} Kd5 {[%emt 0:01:10]} 43. Be8 {[%emt 0:01:05]} g5 {[%emt 0:08:03]} 44. hxg5 {[%emt 0:00:03]} hxg5 {[%emt 0:00:02]} 45. Kc2 {[%emt 0:00:04]} Bd4 {[%emt 0:00:08]} 46. Kd1 {[%emt 0:00:11]} Bc3 {[%emt 0:04:30]} 47. Rc2 {[%emt 0:00:55]} Kd4 {[%emt 0:00:59]} 48. Ke2 {[%emt 0:01:04]} Rb1 {[%emt 0:01:46]} 49. f3 {[%emt 0:02:14]} Rh1 {[%emt 0:02:24]} 50. Bd7 {[%emt 0:00:58]} e4 {[%emt 0:06:03]} 51. Bxf5 {[%emt 0:01:26]} Rh2+ {[%emt 0:02:30]} 52. Kd1 {[%emt 0:00:04]} Rxc2 53. Kxc2 {[%emt 0:00:04]} exf3 {[%emt 0:01:10]} 54. Bg4 {[%emt 0:02:42]} Ke3 {[%emt 0:01:26]} 55. Kxc3 {[%emt 0:00:48]} Kf2 {[%emt 0:01:17]} 56. Kd2 {[%emt 0:00:06]} Kxg3 {[%emt 0:00:33]} 57. Be6 {[%emt 0:00:30]} f2 {[%emt 0:01:51]} 58. Bc4 {[%emt 0:00:17]} Kg2 {[%emt 0:00:26]} 59. Ke3 {[%emt 0:00:40]} g4 {[%emt 0:00:22]} 60. Be2 {[%emt 0:03:09]} g3 {[%emt 0:00:11]} 0-1

[Event "XII Paracin Festival 2019"]
[Site "Paracin"]
[Date "2019.07.11"]
[Round "8.8"]
[White "Vishnu Prasanna. V"]
[Black "Ratkovic, Milovan"]
[Result "1/2-1/2"]
[ECO "B12"]
[WhiteElo "2505"]
[BlackElo "2407"]
[Annotator "ChessBase"]
[PlyCount "84"]
[EventDate "2019.07.05"]
[EventType "swiss"]
[EventCountry "SRB"]
[SourceTitle "playchess.com"]
[Source "ChessBase"]
[SourceQuality "1"]
[TimeControl "5400+30"]

1. e4 {[%emt 0:00:00]} c6 {[%emt 0:00:00]} 2. d4 {[%emt 0:00:00]} d5 {[%emt 0:00:00]} 3. e5 {[%emt 0:00:00]} Bf5 {[%emt 0:00:06]} 4. Be3 {[%emt 0:00:00]} e6 {[%emt 0:00:39]} 5. Nd2 {[%emt 0:00:00]} Nd7 {[%emt 0:01:57]} 6. f4 {[%emt 0:00:06]} Bg6 {[%emt 0:03:48]} 7. Ngf3 {[%emt 0:00:56]} Ne7 {[%emt 0:03:25]} 8. Bf2 {[%emt 0:01:39]} Rc8 {[%emt 0:02:52]} 9. c3 {[%emt 0:06:54]} c5 {[%emt 0:04:56]} 10. dxc5 {[%emt 0:00:29]} Nxc5 {[%emt 0:03:52]} 11. Nb3 {[%emt 0:04:00]} Nd7 {[%emt 0:06:53]} 12. a4 {[%emt 0:16:00]} Nc6 {[%emt 0:08:38]} 13. a5 {[%emt 0:00:28]} a6 {[%emt 0:01:57]} 14. Be2 {[%emt 0:00:27]} Be7 {[%emt 0:00:48]} 15. O-O {[%emt 0:01:39]} O-O {[%emt 0:02:09]} 16. Be3 {[%emt 0:03:31]} Qe8 {[%emt 0:08:06]} 17. Kh1 {[%emt 0:04:54]} f6 {[%emt 0:10:18]} 18. exf6 {[%emt 0:00:39]} Rxf6 {[%emt 0:02:01]} 19. Qd2 {[%emt 0:01:41]} Bd6 {[%emt 0:06:47]} 20. c4 {[%emt 0:08:32]} Kh8 {[%emt 0:02:22]} 21. c5 {[%emt 0:02:48]} Bb8 {[%emt 0:00:34]} 22. Nfd4 {[%emt 0:07:30]} e5 {[%emt 0:08:06]} 23. Nxc6 {[%emt 0:05:26]} Rcxc6 {[%emt 0:00:37]} 24. Bg4 {[%emt 0:00:40]} exf4 {[%emt 0:06:09]} 25. Bxd7 {[%emt 0:04:44]} Qxd7 {[%emt 0:00:27]} 26. Bxf4 {[%emt 0:00:21]} Qf7 {[%emt 0:02:06]} 27. g3 {[%emt 0:05:30]} Be4+ {[%emt 0:00:19]} 28. Kg1 {[%emt 0:00:04]} Bxf4 {[%emt 0:00:25]} 29. Rxf4 {[%emt 0:00:05]} Rxf4 {[%emt 0:00:13]} 30. Qxf4 {[%emt 0:00:05]} Qxf4 {[%emt 0:00:14]} 31. gxf4 {[%emt 0:00:04]} Rg6+ {[%emt 0:00:18]} 32. Kf2 {[%emt 0:00:52]} Rg2+ {[%emt 0:02:34]} 33. Ke3 {[%emt 0:00:05]} Rxb2 {[%emt 0:01:04]} 34. Nd4 {[%emt 0:01:01]} Rxh2 {[%emt 0:00:32]} 35. c6 {[%emt 0:01:04]} Rh3+ {[%emt 0:00:36]} 36. Kf2 {[%emt 0:00:05]} bxc6 {[%emt 0:00:29]} 37. Rc1 {[%emt 0:00:06]} h6 {[%emt 0:04:12]} 38. Rxc6 {[%emt 0:00:11]} Rd3 {[%emt 0:00:39]} 39. Ne6 {[%emt 0:00:19]} Rf3+ {[%emt 0:00:32]} 40. Ke1 {[%emt 0:01:12]} Re3+ {[%emt 0:04:35]} 41. Kf2 {[%emt 0:00:08]} Rf3+ {[%emt 0:00:53]} 42. Ke1 {[%emt 0:00:05]} Re3+ {[%emt 0:00:27]} 1/2-1/2

[Event "XII Paracin Festival 2019"]
[Site "Paracin"]
[Date "2019.07.11"]
[Round "8.9"]
[White "Asadli, Vugar"]
[Black "Baglan, Esat"]
[Result "1/2-1/2"]
[ECO "B23"]
[WhiteElo "2502"]
[BlackElo "2336"]
[Annotator "ChessBase"]
[PlyCount "86"]
[EventDate "2019.07.05"]
[EventType "swiss"]
[EventCountry "SRB"]
[SourceTitle "playchess.com"]
[Source "ChessBase"]
[SourceQuality "1"]
[TimeControl "5400+30"]

1. e4 {[%emt 0:00:15]} c5 {[%emt 0:00:00]} 2. Nc3 {[%emt 0:00:04]} d6 {[%emt 0:00:07]} 3. Bb5+ {[%emt 0:00:03]} Bd7 {[%emt 0:00:53]} 4. Bxd7+ {[%emt 0:01:12]} Qxd7 {[%emt 0:01:07]} 5. d4 {[%emt 0:00:04]} cxd4 {[%emt 0:00:19]} 6. Qxd4 {[%emt 0:00:04]} Nc6 {[%emt 0:00:20]} 7. Qd3 {[%emt 0:00:10]} g6 {[%emt 0:04:03]} 8. Nf3 {[%emt 0:00:54]} Bg7 {[%emt 0:00:31]} 9. O-O {[%emt 0:00:56]} Nf6 {[%emt 0:01:23]} 10. Bg5 {[%emt 0:00:18]} O-O {[%emt 0:04:19]} 11. Rad1 {[%emt 0:00:04]} h6 {[%emt 0:06:42]} 12. Bc1 {[%emt 0:06:24]} Rfd8 {[%emt 0:07:06]} 13. Nd5 {[%emt 0:03:45]} Ne8 {[%emt 0:01:50]} 14. Rfe1 {[%emt 0:07:11]} Rac8 {[%emt 0:06:02]} 15. Qa3 {[%emt 0:07:59]} e6 {[%emt 0:05:12]} 16. Ne3 {[%emt 0:00:11]} Qe7 {[%emt 0:01:07]} 17. b4 {[%emt 0:04:25]} b5 {[%emt 0:06:36]} 18. c4 {[%emt 0:04:12]} bxc4 {[%emt 0:03:50]} 19. Nxc4 {[%emt 0:08:31]} Nd4 {[%emt 0:03:38]} 20. Nxd4 {[%emt 0:05:48]} Rxc4 {[%emt 0:00:24]} 21. Nb3 {[%emt 0:01:11]} Rdc8 {[%emt 0:04:22]} 22. b5 {[%emt 0:05:49]} Qd7 {[%emt 0:11:36]} 23. e5 {[%emt 0:03:43]} d5 {[%emt 0:01:15]} 24. Nd4 {[%emt 0:04:14]} Bf8 {[%emt 0:09:01]} 25. Qb3 {[%emt 0:00:58]} a6 {[%emt 0:06:02]} 26. a3 {[%emt 0:07:06]} axb5 {[%emt 0:02:40]} 27. Nxb5 {[%emt 0:00:01]} Qb7 {[%emt 0:01:07]} 28. Bd2 {[%emt 0:00:05]} Nc7 {[%emt 0:04:36]} 29. a4 {[%emt 0:00:03]} Nxb5 {[%emt 0:01:38]} 30. axb5 {[%emt 0:00:06]} Bb4 {[%emt 0:01:05]} 31. Rf1 {[%emt 0:02:31]} Bxd2 {[%emt 0:00:55]} 32. Rxd2 {[%emt 0:00:00]} Rc3 {[%emt 0:00:45]} 33. Qb4 {[%emt 0:01:33]} R8c4 {[%emt 0:01:53]} 34. Qb1 {[%emt 0:00:26]} Qb6 {[%emt 0:02:12]} 35. h3 {[%emt 0:02:22]} Rc5 {[%emt 0:00:38]} 36. Rb2 {[%emt 0:00:03]} d4 {[%emt 0:00:13]} 37. Qe4 {[%emt 0:00:29]} Rxb5 {[%emt 0:00:42]} 38. Rxb5 {[%emt 0:00:06]} Qxb5 {[%emt 0:00:05]} 39. Qxd4 {[%emt 0:00:02]} Qd3 {[%emt 0:01:32]} 40. Qf4 {[%emt 0:00:59]} Qf5 {[%emt 0:00:20]} 41. Qxh6 {[%emt 0:00:11]} Qxe5 {[%emt 0:00:07]} 42. Rd1 {[%emt 0:00:13]} Rc8 {[%emt 0:00:07]} 43. Qh4 {[%emt 0:00:45]} Kg7 {[%emt 0:00:17]} 1/2-1/2